Workbook

Sheet Rendement global
B2: Taux de rendement global d'une obligation
B4: Généralité | C4: Valeur nominale | D4: 100.00 | N4: =D4*D5/100 -> 7.00
C5: Taux d'intérêt | D5: 7.00 | F5: %
B7: Achat | C7: Capital engagé | D7: 1,991.80 | N7: =D7/D8 -> 99.59 | O7: prix d'achat par titre
C8: Nb de titres achetés | D8: 20
B10: Vente | C10: Capital récupéré | D10: 2,102.95 | N10: =D10/D11 -> 105.15 | O10: prix de vente par titre
C11: Nb de titres vendus | D11: 20 | N11: =N10-N7 -> 5.56 | O11: gain ou perte à la vente
B13: Renseignements | C13: Nb de coupons encaissés | D13: 3 | N13: =N4*D13 -> 21.00 | O13: intérêt total
N14: =N11+N13 -> 26.56 | O14: gain total par obligation
D15: jour | E15: mois | F15: année | G15: j. | H15: m. | I15: bissextile | K15: calculs
C16: Date de l'achat | D16: 29 | E16: 2 | F16: 1996 | G16: =IF(E16=2,IF(I16=1,IF(D16=29,30,D16),IF(D16=28,30,D16)),IF(D16=31,30,D16)) -> 30 | H16: =E16 -> 2 | I16: =IF(F16/100=INT(F16/100),IF(F16/400=INT(F16/400),1,0),IF(F16/4=INT(F16/4),1,0)) -> 1
C17: Date de la vente | D17: 28 | E17: 2 | F17: 2000 | G17: =IF(E17=2,IF(I17=1,IF(D17=29,30,D17),IF(D17=28,30,D17)),IF(D17=31,30,D17)) -> 28 | H17: =IF(F17-F16>0,E17+12,E17) -> 14 | I17: =IF(F17/100=INT(F17/100),IF(F17/400=INT(F17/400),1,0),IF(F17/4=INT(F17/4),1,0)) -> 1 | K17: nb j. | L17: =30-G16+G17 -> 28
K18: nb m. | L18: =(H17-H16-1)*30 -> 330
K19: nb a. | L19: =IF(F17-F16>1,(F17-F16-1)*360,0) -> 1080
C20: Durée du placement | D20: =L20 -> 1438 | E20: jours | I20: total : | L20: =SUM(L17:L19) -> 1438
B22: Taux de rendement brut | D22: =(N14*36000)/(N7*D20) -> 6.676 | F22: %
B25: * Capital engagé compte tenu de l'intérêt couru et des frais
B30: Taux de rendement global d'une action
B32: Généralité | C32: Valeur nominale | D32: 500.00
C33: Total des dividendes encaissés | D33: 145.00 | F33: Fr. | N33: =D33 -> 145.00 | O33: dividendes
C34: par action
B36: Achat | C36: Capital engagé | D36: 23,164.45 | N36: =D36/D37 -> 926.58 | O36: prix d'achat par titre
C37: Nb de titres achetés | D37: 25
B39: Vente | C39: Capital récupéré | D39: 28,296.10 | N39: =D39/D40 -> 1131.84 | O39: prix de vente par titre
C40: Nb de titres vendus | D40: 25 | N40: =N39-N36 -> 205.27 | O40: gain ou perte à la vente
D42: 3
B44: Renseignements | D44: jour | E44: mois | F44: année | G44: j. | H44: m. | I44: bissextile | K44: calculs | N44: =N40+N33 -> 350.27 | O44: Résultat
C45: Date de l'achat | D45: 1 | E45: 2 | F45: 1991 | G45: =IF(E45=2,IF(I45=1,IF(D45=29,30,D45),IF(D45=28,30,D45)),IF(D45=31,30,D45)) -> 1 | H45: =E45 -> 2 | I45: =IF(F45/100=INT(F45/100),IF(F45/400=INT(F45/400),0,1),IF(F45/4=INT(F45/4),1,0)) -> 0
C46: Date de la vente | D46: 1 | E46: 6 | F46: 1993 | G46: =IF(E46=2,IF(I46=1,IF(D46=29,30,D46),IF(D46=28,30,D46)),IF(D46=31,30,D46)) -> 1 | H46: =IF(F46-F45>0,E46+12,E46) -> 18 | I46: =IF(F46/100=INT(F46/100),IF(F46/400=INT(F46/400),0,1),IF(F46/4=INT(F46/4),1,0)) -> 0 | K46: nb j. | L46: =30-G45+G46 -> 30
K47: nb m. | L47: =(H46-H45-1)*30 -> 450
K48: nb a. | L48: =IF(F46-F45>1,(F46-F45-1)*360,0) -> 360
C49: Durée du placement | D49: =L49 -> 840 | E49: jours | I49: total : | L49: =SUM(L46:L48) -> 840
B51: Taux de rendement brut | D51: =(N44*36000)/(N36*D49) -> 16.201 | F51: %

Sheet Tableau rendement brut
A1: Borboën E10 p. 105
C2: Tableau de rendement brut des obligations
B4: cours \ taux | C4: 4 | D4: 4.5 | E4: 5 | F4: 5.5 | G4: 6 | H4: 6.5 | I4: 7 | J4: 7.5 | K4: 8 | L4: 8.5
B5: 95 | C5: =C$4/$B5*100 -> 4.21 | D5: 4.74 | E5: 5.26 | F5: 5.79 | G5: 6.32 | H5: 6.84 | I5: 7.37 | J5: 7.89 | K5: 8.42 | L5: 8.95
B6: 96 | C6: 4.17 | D6: 4.69 | E6: 5.21 | F6: 5.73 | G6: 6.25 | H6: 6.77 | I6: 7.29 | J6: 7.81 | K6: 8.33 | L6: 8.85
B7: 97 | C7: 4.12 | D7: 4.64 | E7: 5.15 | F7: 5.67 | G7: 6.19 | H7: 6.70 | I7: 7.22 | J7: 7.73 | K7: 8.25 | L7: 8.76
B8: 98 | C8: 4.08 | D8: 4.59 | E8: 5.10 | F8: 5.61 | G8: 6.12 | H8: 6.63 | I8: 7.14 | J8: 7.65 | K8: 8.16 | L8: 8.67
B9: 99 | C9: 4.04 | D9: 4.55 | E9: 5.05 | F9: 5.56 | G9: 6.06 | H9: 6.57 | I9: 7.07 | J9: 7.58 | K9: 8.08 | L9: 8.59
B10: 100 | C10: 4.00 | D10: 4.50 | E10: 5.00 | F10: 5.50 | G10: 6.00 | H10: 6.50 | I10: 7.00 | J10: 7.50 | K10: 8.00 | L10: 8.50
B11: 101 | C11: 3.96 | D11: 4.46 | E11: 4.95 | F11: 5.45 | G11: 5.94 | H11: 6.44 | I11: 6.93 | J11: 7.43 | K11: 7.92 | L11: 8.42
B12: 102 | C12: 3.92 | D12: 4.41 | E12: 4.90 | F12: 5.39 | G12: 5.88 | H12: 6.37 | I12: 6.86 | J12: 7.35 | K12: 7.84 | L12: 8.33
B13: 103 | C13: 3.88 | D13: 4.37 | E13: 4.85 | F13: 5.34 | G13: 5.83 | H13: 6.31 | I13: 6.80 | J13: 7.28 | K13: 7.77 | L13: 8.25
B14: 104 | C14: 3.85 | D14: 4.33 | E14: 4.81 | F14: 5.29 | G14: 5.77 | H14: 6.25 | I14: 6.73 | J14: 7.21 | K14: 7.69 | L14: 8.17
B15: 105 | C15: 3.81 | D15: 4.29 | E15: 4.76 | F15: 5.24 | G15: 5.71 | H15: 6.19 | I15: 6.67 | J15: 7.14 | K15: 7.62 | L15: 8.10
B16: 106 | C16: 3.77 | D16: 4.25 | E16: 4.72 | F16: 5.19 | G16: 5.66 | H16: 6.13 | I16: 6.60 | J16: 7.08 | K16: 7.55 | L16: 8.02
B17: 107 | C17: 3.74 | D17: 4.21 | E17: 4.67 | F17: 5.14 | G17: 5.61 | H17: 6.07 | I17: 6.54 | J17: 7.01 | K17: 7.48 | L17: 7.94
B18: 108 | C18: 3.70 | D18: 4.17 | E18: 4.63 | F18: 5.09 | G18: 5.56 | H18: 6.02 | I18: 6.48 | J18: 6.94 | K18: 7.41 | L18: 7.87
B19: 109 | C19: 3.67 | D19: 4.13 | E19: 4.59 | F19: 5.05 | G19: 5.50 | H19: 5.96 | I19: 6.42 | J19: 6.88 | K19: 7.34 | L19: 7.80
B20: 110 | C20: 3.64 | D20: 4.09 | E20: 4.55 | F20: 5.00 | G20: 5.45 | H20: 5.91 | I20: 6.36 | J20: 6.82 | K20: 7.27 | L20: 7.73
B22: Autres données :
B24: cours en % : | C24: 75
B25: taux en % : | C25: 3
B26: Rendement : | C26: =C25*100/C24 -> 4.00 | D26: %
